Workbook

Sheet v4.0 (hidden)
C1: Additional Space:
B4: Start Date: | D4: End Date:
B5: AirFare 1: | E5: COM. CARR.-I: | F5: =C5+C6+C7+C8+C9+C10+C11+C12+J5+J6+J7+J8+J9+J10+J11+J12 -> 0 | I5: AirFare 5:
B6: CTO Fee 1: | I6: CTO Fee 5:
B7: Airfare 2: | I7: Airfare 6:
B8: CTO Fee 2: | I8: CTO Fee 6:
B9: Airfare 3: | I9: Airfare 7:
B10: CTO Fee 3: | I10: CTO Fee 7:
B11: Airfare 4: | I11: Airfare 8:
B12: CTO Fee 4: | I12: CTO Fee 8:
E13: Total LODGING: | F13: =D15+D20+D25+D30+K15+K20+K25+K30 -> 0
B14: Number of nights: | C14: =G17 -> 0 | I14: Number of nights: | J14: =N17 -> 0
B15: Hotel Room 1: | D15: =C14*C15 -> 0 | E15: Total Room: | F15: =D15 -> 0 | I15: Hotel Room 5: | K15: =J14*J15 -> 0 | L15: Total Room: | M15: =K15 -> 0
B16: Room Tax 1: | D16: =C16*C14 -> 0 | E16: Total Taxes: | F16: =D16+D17+D18 -> 0 | I16: Room Tax 1: | K16: =J16*J14 -> 0 | L16: Total Taxes: | M16: =K16+K17+K18 -> 0
B17: Room Tax 2: | D17: =C17*C14 -> 0 | E17: Total Bill: | F17: =F15+F16 -> 0 | G17: =G16-G15 -> 0 | I17: Room Tax 2: | K17: =J17*J14 -> 0 | L17: Total Bill: | M17: =M15+M16 -> 0 | N17: =N16-N15 -> 0
B18: Room Tax 3: | D18: =C18*C14 -> 0 | I18: Room Tax 3: | K18: =J18*J14 -> 0
B19: Number of nights: | C19: =G22 -> 0 | G19: Date Calc: | I19: Number of nights: | J19: =N22 -> 0 | N19: Date Calc:
B20: Hotel Room 2: | D20: =C20*C19 -> 0 | E20: Total Room: | F20: =D20 -> 0 | I20: Hotel Room 6: | K20: =J20*J19 -> 0 | L20: Total Room: | M20: =K20 -> 0
B21: Room Tax 1: | D21: =C21*C19 -> 0 | E21: Total Taxes: | F21: =D21+D22+D23 -> 0 | I21: Room Tax 1: | K21: =J21*J19 -> 0 | L21: Total Taxes: | M21: =K21+K22+K23 -> 0
B22: Room Tax 2: | D22: =C22*C19 -> 0 | E22: Total Bill: | F22: =F20+F21 -> 0 | G22: =G21-G20 -> 0 | I22: Room Tax 2: | K22: =J22*J19 -> 0 | L22: Total Bill: | M22: =M20+M21 -> 0 | N22: =N21-N20 -> 0
B23: Room Tax 3: | D23: =C23*C19 -> 0 | I23: Room Tax 3: | K23: =J23*J19 -> 0
B24: Number of nights: | C24: =G27 -> 0 | G24: Date Calc: | I24: Number of nights: | J24: =N27 -> 0 | N24: Date Calc:
B25: Hotel Room 3: | D25: =C25*C24 -> 0 | E25: Total Room: | F25: =D25 -> 0 | I25: Hotel Room 7: | K25: =J25*J24 -> 0 | L25: Total Room: | M25: =K25 -> 0
B26: Room Tax 1: | D26: =C26*C24 -> 0 | E26: Total Taxes: | F26: =D26+D27+D28 -> 0 | I26: Room Tax 1: | K26: =J26*J24 -> 0 | L26: Total Taxes: | M26: =K26+K27+K28 -> 0
B27: Room Tax 2: | D27: =C27*C24 -> 0 | E27: Total Bill: | F27: =F25+F26 -> 0 | G27: =G26-G25 -> 0 | I27: Room Tax 2: | K27: =J27*J24 -> 0 | L27: Total Bill: | M27: =M25+M26 -> 0 | N27: =N26-N25 -> 0
B28: Room Tax 3: | D28: =C28*C24 -> 0 | I28: Room Tax 3: | K28: =J28*J24 -> 0
B29: Number of nights: | C29: =G32 -> 0 | G29: Date Calc: | I29: Number of nights: | J29: =N32 -> 0 | N29: Date Calc:
B30: Hotel Room 4: | D30: =C30*C29 -> 0 | E30: Total Room: | F30: =D30 -> 0 | I30: Hotel Room 8: | K30: =J30*J29 -> 0 | L30: Total Room: | M30: =K30 -> 0
B31: Room Tax 1: | D31: =C31*C29 -> 0 | E31: Total Taxes: | F31: =D31+D32+D33 -> 0 | I31: Room Tax 1: | K31: =J31*J29 -> 0 | L31: Total Taxes: | M31: =K31+K32+K33 -> 0
B32: Room Tax 2: | D32: =C32*C29 -> 0 | E32: Total Bill: | F32: =F30+F31 -> 0 | G32: =G31-G30 -> 0 | I32: Room Tax 2: | K32: =J32*J29 -> 0 | L32: Total Bill: | M32: =M30+M31 -> 0 | N32: =N31-N30 -> 0
B33: Room Tax 3: | D33: =C33*C29 -> 0 | I33: Room Tax 3: | K33: =J33*J29 -> 0
B34: Rental Car 1: | E34: RENTAL CAR: | F34: =C34+C35+C36+J34+J35+J36 -> 0 | I34: Rental Car 4:
B35: Rental Car 2: | I35: Rental Car 5:
B36: Rental Car 3: | I36: Rental Car 6:
B37: Gas 1: | E37: TRANSPORT: | F37: =C37+C38+C39+C40+C41+C42+J37+J38+J39+J40+J41+J42 -> 0 | I37: Gas 7:
B38: Gas 2: | I38: Gas 8:
B39: Gas 3: | I39: Gas 9:
B40: Gas 4: | I40: Gas 10:
B41: Gas 5: | I41: Gas 11:
B42: Gas 6: | I42: Gas 12:
B43: Hotel Room Taxes: | C43: =F16+F21+F26+F31+M16+M21+M26+M31 -> 0 | E43: OTHER: | F43: =C43+C44+C45+C46+C47+C48+C49+C50+C51+C52+C53+J43+J44+J45+J46+J47+J48+J49+J50+J51+J52+J53 -> 0 | G43: Add em up | I43: Misc 1: | N43: Add em up
B44: Parking Term: | E44: Taxi Fare Finder | I44: Misc 2:
B45: Parking TDY: | I45: Misc 3:
B46: FCC Fees: | I46: Misc 4:
B47: Public Trans: | I47: Misc 5:
B48: Tolls 1: | I48: Misc 6:
B49: Tolls 2: | I49: Misc 7:
B50: Taxi 1: | I50: Misc 8:
B51: Taxi 2: | I51: Misc 9:
B52: Baggage 1: | I52: Misc 10:
B53: Baggage 2: | G53: =SUM(G44:G52) -> 0 | I53: Misc 11: | N53: =SUM(N44:N52) -> 0
C55: Tax Pro-Rater | F55: #of Nights:
B56: Charged Rate: | D56: - | F56: :Allowable Rate
B57: Tax 1: | D57: =C57/C56 ->  | E57: =E56*D57 ->  | F57: =E57*G55 -> 
B58: Tax 2: | D58: =C58/C56 ->  | E58: =E56*D58 ->  | F58: =E58*G55 -> 
B59: Tax 3: | D59: =C59/C56 ->  | E59: =E56*D59 ->  | F59: =E59*G55 -> 
B60: Tax 4: | D60: Flat | E60: =C60 -> 0 | F60: =E60*G55 -> 0
E61: Total Allowable Taxes: | F61: =F57+F58+F59+F60 -> 
C63: Taxi Tip Pro-Rater | F63: Allowed:
B64: Taxi Fare 1: | D64: =C64*20% -> 0 | E64: : Max Tip | F64: =C64+D64 -> 0
B65: Taxi Fare 2: | D65: =C65*20% -> 0 | E65: : Max Tip | F65: =C65+D65 -> 0
B66: Taxi Fare 3: | D66: =C66*20% -> 0 | E66: : Max Tip | F66: =C66+D66 -> 0
B67: Taxi Fare 4: | D67: =C67*20% -> 0 | E67: : Max Tip | F67: =C67+D67 -> 0
B69: XE Currency Converter | E69: OANDA
A70: DO NOT CHANGE ANY YELLOW BOX - ONLY MODIFY THE GREEN OR WHITE BOXES
A72: EURO | C72: 400 | D72: 500 | E72: E Rate: | F72: =D72/C72 -> 1.25
F73: # of nights
E74: Per Night | F74: 4
B75: Room Charge | C75: 50 | D75: =C75*F72 -> 62.5
B76: Govt Levy | C76: 2.5 | D76: =C76*F72 -> 3.125 | E76: =SUM(D75:D76) -> 65.625 | F76: =E76*F74 -> 262.5
B77: Service Charge Fee | C77: 1.5 | D77: =C77*F72 -> 1.875 | G77: Total
B78: Service Charge Fee | C78: 3 | D78: =C78*F72 -> 3.75 | E78: =D77+D78 -> 5.625 | F78: =E78*F74 -> 22.5 | G78: Stay
B79: Donation Fee | C79: 1 | D79: =C79*F72 -> 1.25 | G79: =F76+F78+D79 -> 286.25
B80: Additional Expenses:
C81: 100 | D81: =C81*$F$72 -> 125 | G81: =F81*$F$72 -> 0
C82: 125 | D82: =C82*$F$72 -> 156.25 | F82: 0 | G82: =F82*$F$72 -> 0
C83: 150 | D83: =C83*$F$72 -> 187.5 | F83: 0 | G83: =F83*$F$72 -> 0
C84: 200 | D84: =C84*$F$72 -> 250 | F84: 0 | G84: =F84*$F$72 -> 0

Sheet v4.1 (hidden)
C1: Additional Space:
B4: Start Date: | D4: End Date:
B5: AirFare 1: | E5: COM. CARR.-I: | F5: =C5+C6+C7+C8+C9+C10+C11+C12+J5+J6+J7+J8+J9+J10+J11+J12 -> 0 | I5: AirFare 5:
B6: CTO Fee 1: | I6: CTO Fee 5:
B7: Airfare 2: | I7: Airfare 6:
B8: CTO Fee 2: | I8: CTO Fee 6:
B9: Airfare 3: | I9: Airfare 7:
B10: CTO Fee 3: | I10: CTO Fee 7:
B11: Airfare 4: | I11: Airfare 8:
B12: CTO Fee 4: | I12: CTO Fee 8:
E13: Total LODGING: | F13: =D15+D20+D25+D30+K15+K20+K25+K30 -> 0
B14: Number of nights: | C14: =G17 -> 0 | G14: Date Calc: | I14: Number of nights: | J14: =N17 -> 0 | N14: Date Calc:
B15: Hotel Room 1: | D15: =C14*C15 -> 0 | E15: Total Room: | F15: =D15 -> 0 | I15: Hotel Room 5: | K15: =J14*J15 -> 0 | L15: Total Room: | M15: =K15 -> 0
B16: Room Tax 1: | D16: =C16*C14 -> 0 | E16: Total Taxes: | F16: =D16+D17+D18 -> 0 | I16: Room Tax 1: | K16: =J16*J14 -> 0 | L16: Total Taxes: | M16: =K16+K17+K18 -> 0
B17: Room Tax 2: | D17: =C17*C14 -> 0 | E17: Total Bill: | F17: =F15+F16 -> 0 | G17: =G16-G15 -> 0 | I17: Room Tax 2: | K17: =J17*J14 -> 0 | L17: Total Bill: | M17: =M15+M16 -> 0 | N17: =N16-N15 -> 0
B18: Room Tax 3: | D18: =C18*C14 -> 0 | I18: Room Tax 3: | K18: =J18*J14 -> 0
B19: Number of nights: | C19: =G22 -> 0 | G19: Date Calc: | I19: Number of nights: | J19: =N22 -> 0 | N19: Date Calc:
B20: Hotel Room 2: | D20: =C20*C19 -> 0 | E20: Total Room: | F20: =D20 -> 0 | I20: Hotel Room 6: | K20: =J20*J19 -> 0 | L20: Total Room: | M20: =K20 -> 0
B21: Room Tax 1: | D21: =C21*C19 -> 0 | E21: Total Taxes: | F21: =D21+D22+D23 -> 0 | I21: Room Tax 1: | K21: =J21*J19 -> 0 | L21: Total Taxes: | M21: =K21+K22+K23 -> 0
B22: Room Tax 2: | D22: =C22*C19 -> 0 | E22: Total Bill: | F22: =F20+F21 -> 0 | G22: =G21-G20 -> 0 | I22: Room Tax 2: | K22: =J22*J19 -> 0 | L22: Total Bill: | M22: =M20+M21 -> 0 | N22: =N21-N20 -> 0
B23: Room Tax 3: | D23: =C23*C19 -> 0 | I23: Room Tax 3: | K23: =J23*J19 -> 0
B24: Number of nights: | C24: =G27 -> 0 | G24: Date Calc: | I24: Number of nights: | J24: =N27 -> 0 | N24: Date Calc:
B25: Hotel Room 3: | D25: =C25*C24 -> 0 | E25: Total Room: | F25: =D25 -> 0 | I25: Hotel Room 7: | K25: =J25*J24 -> 0 | L25: Total Room: | M25: =K25 -> 0
B26: Room Tax 1: | D26: =C26*C24 -> 0 | E26: Total Taxes: | F26: =D26+D27+D28 -> 0 | I26: Room Tax 1: | K26: =J26*J24 -> 0 | L26: Total Taxes: | M26: =K26+K27+K28 -> 0
B27: Room Tax 2: | D27: =C27*C24 -> 0 | E27: Total Bill: | F27: =F25+F26 -> 0 | G27: =G26-G25 -> 0 | I27: Room Tax 2: | K27: =J27*J24 -> 0 | L27: Total Bill: | M27: =M25+M26 -> 0 | N27: =N26-N25 -> 0
B28: Room Tax 3: | D28: =C28*C24 -> 0 | I28: Room Tax 3: | K28: =J28*J24 -> 0
B29: Number of nights: | C29: =G32 -> 0 | G29: Date Calc: | I29: Number of nights: | J29: =N32 -> 0 | N29: Date Calc:
B30: Hotel Room 4: | D30: =C30*C29 -> 0 | E30: Total Room: | F30: =D30 -> 0 | I30: Hotel Room 8: | K30: =J30*J29 -> 0 | L30: Total Room: | M30: =K30 -> 0
B31: Room Tax 1: | D31: =C31*C29 -> 0 | E31: Total Taxes: | F31: =D31+D32+D33 -> 0 | I31: Room Tax 1: | K31: =J31*J29 -> 0 | L31: Total Taxes: | M31: =K31+K32+K33 -> 0
B32: Room Tax 2: | D32: =C32*C29 -> 0 | E32: Total Bill: | F32: =F30+F31 -> 0 | G32: =G31-G30 -> 0 | I32: Room Tax 2: | K32: =J32*J29 -> 0 | L32: Total Bill: | M32: =M30+M31 -> 0 | N32: =N31-N30 -> 0
B33: Room Tax 3: | D33: =C33*C29 -> 0 | I33: Room Tax 3: | K33: =J33*J29 -> 0
B34: From Per Diem Page: | E34: Total M&IE: | F34: =C34 -> 0
B35: Mileage to: | E35: Total MILEAGE: | F35: =C35+C36+C37 -> 0
B36: Mileage From:
B37: In and Around:
B38: Hotel Room Taxes: | C38: =F16+F21+F26+F31+M16+M21+M26+M31 -> 0 | E38: OTHER: | F38: =C38+C39+C40+C41+C42+C43+C44+C45+C46+C47+C48+J38+J39+J40+J41+J42+J43+J44+J45+J46+J47+J48 -> 0 | I38: Misc 1: | N38: Add em up
B39: Parking Term: | E39: Taxi Fare Finder | I39: Misc 2:
B40: Parking TDY: | I40: Misc 3:
B41: FCC Fees: | I41: Misc 4:
B42: Public Trans: | I42: Misc 5:
B43: Tolls 1: | I43: Misc 6:
B44: Tolls 2: | I44: Misc 7:
B45: Taxi 1: | I45: Misc 8:
B46: Taxi 2: | I46: Misc 9:
B47: Baggage 1: | I47: Misc 10:
B48: Baggage 2: | G48: =SUM(G39:G47) -> 0 | I48: Misc 11: | N48: =SUM(N39:N47) -> 0
B49: Rental Car 1: | E49: RENTAL CAR: | F49: =C49+C50+C51+J49+J50+J51 -> 0 | I49: Rental Car 4:
B50: Rental Car 2: | I50: Rental Car 5:
B51: Rental Car 3: | I51: Rental Car 6:
B52: Gas 1: | E52: TRANSPORT: | F52: =C52+C53+C54+C55+C56+C57+J52+J53+J54+J55+J56+J57 -> 0 | I52: Gas 7:
B53: Gas 2: | I53: Gas 8:
B54: Gas 3: | I54: Gas 9:
B55: Gas 4: | I55: Gas 10:
B56: Gas 5: | I56: Gas 11:
B57: Gas 6: | I57: Gas 12:
B59: ACTUAL TRIP COST | E59: COM. CARR.-I: | F59: =F5 -> 0
E60: LODGING: | F60: =F13 -> 0
E61: M&IE: | F61: =F34 -> 0
E62: MILEAGE: | F62: =F35 -> 0
E63: OTHER: | F63: =F38 -> 0
E64: RENTAL CAR: | F64: =F49 -> 0
E65: TRANSPORT: | F65: =F52 -> 0
E66: TOTAL: | F66: =SUM(F59:F65) -> 0
C69: Tax Pro-Rater | F69: #of Nights:
B70: Charged Rate: | D70: - | F70: :Allowable Rate
B71: Tax 1: | D71: =C71/C70 ->  | E71: =E70*D71 ->  | F71: =E71*G69 -> 
B72: Tax 2: | D72: =C72/C70 ->  | E72: =E70*D72 ->  | F72: =E72*G69 -> 
B73: Tax 3: | D73: =C73/C70 ->  | E73: =E70*D73 ->  | F73: =E73*G69 -> 
B74: Tax 4: | D74: Flat | E74: =C74 -> 0 | F74: =E74*G69 -> 0
E75: Total Allowable Taxes: | F75: =F71+F72+F73+F74 -> 
C77: Taxi Tip Pro-Rater | F77: Allowed:
B78: Taxi Fare 1: | D78: =C78*20% -> 0 | E78: : Max Tip | F78: =C78+D78 -> 0
B79: Taxi Fare 2: | D79: =C79*20% -> 0 | E79: : Max Tip | F79: =C79+D79 -> 0
B80: Taxi Fare 3: | D80: =C80*20% -> 0 | E80: : Max Tip | F80: =C80+D80 -> 0
B81: Taxi Fare 4: | D81: =C81*20% -> 0 | E81: : Max Tip | F81: =C81+D81 -> 0
B83: XE Currency Converter | E83: OANDA
A84: DO NOT CHANGE ANY YELLOW BOX - ONLY MODIFY THE GREEN OR WHITE BOXES
A86: EURO | C86: 767 | D86: 857.42 | E86: E Rate: | F86: =D86/C86 -> 1.117887875
F87: # of nights
E88: Per Night | F88: 6
B89: Room Charge | C89: 127.83 | D89: =C89*F86 -> 142.899607
B90: Govt Levy | C90: 0 | D90: =C90*F86 -> 0 | E90: =SUM(D89:D90) -> 142.899607 | F90: =E90*F88 -> 857.3976422
B91: Service Charge Fee | C91: 0 | D91: =C91*F86 -> 0 | G91: Total
B92: Service Charge Fee | C92: 0 | D92: =C92*F86 -> 0 | E92: =D91+D92 -> 0 | F92: =E92*F88 -> 0 | G92: Stay
B93: Donation Fee | C93: 0 | D93: =C93*F86 -> 0 | G93: =F90+F92+D93 -> 857.3976422
B94: Additional Expenses:
B95: Parking weekend | C95: 28 | D95: =C95*$F$86 -> 31.3008605 | G95: =F95*$F$86 -> 0
B96: Parking | C96: 76 | D96: =C96*$F$86 -> 84.95947849 | F96: 0 | G96: =F96*$F$86 -> 0
D97: =C97*$F$86 -> 0 | F97: 0 | G97: =F97*$F$86 -> 0
D98: =C98*$F$86 -> 0 | F98: 0 | G98: =F98*$F$86 -> 0

Sheet CHANGES (hidden)
B2: Version | C2: Changes
B3: v4.0 | C3: Published 1 Oct 2019
C4: Added M&IE Line
C5: Added Mileage Lines
C6: Added totals section
B7: v4.1 | C7: Published 28 Oct 2019

Sheet VOUCHER
C1: Additional Space:
B4: Start Date: | D4: End Date:
B5: AirFare 1: | E5: COM. CARR.-I: | F5: =C5+C6+C7+C8+C9+C10+C11+C12+J5+J6+J7+J8+J9+J10+J11+J12 -> 0 | I5: AirFare 5:
B6: CTO Fee 1: | I6: CTO Fee 5:
B7: Airfare 2: | I7: Airfare 6:
B8: CTO Fee 2: | I8: CTO Fee 6:
B9: Airfare 3: | I9: Airfare 7:
B10: CTO Fee 3: | I10: CTO Fee 7:
B11: Airfare 4: | I11: Airfare 8:
B12: CTO Fee 4: | I12: CTO Fee 8:
E13: Total LODGING: | F13: =D15+D20+D25+D30+K15+K20+K25+K30 -> 0
B14: Number of nights: | G14: Date Calc: | I14: Number of nights: | J14: =N17 -> 0 | N14: Date Calc:
B15: Hotel Room 1: | D15: =C14*C15 -> 0 | E15: Total Room: | F15: =D15 -> 0 | I15: Hotel Room 5: | K15: =J14*J15 -> 0 | L15: Total Room: | M15: =K15 -> 0
B16: Room Tax 1: | D16: =C16*C14 -> 0 | E16: Total Taxes: | F16: =D16+D17+D18 -> 0 | I16: Room Tax 1: | K16: =J16*J14 -> 0 | L16: Total Taxes: | M16: =K16+K17+K18 -> 0
B17: Room Tax 2: | D17: =C17*C14 -> 0 | E17: Total Bill: | F17: =F15+F16 -> 0 | G17: =G16-G15 -> 0 | I17: Room Tax 2: | K17: =J17*J14 -> 0 | L17: Total Bill: | M17: =M15+M16 -> 0 | N17: =N16-N15 -> 0
B18: Room Tax 3: | D18: =C18*C14 -> 0 | I18: Room Tax 3: | K18: =J18*J14 -> 0
B19: Number of nights: | C19: =G22 -> 0 | G19: Date Calc: | I19: Number of nights: | J19: =N22 -> 0 | N19: Date Calc:
B20: Hotel Room 2: | D20: =C20*C19 -> 0 | E20: Total Room: | F20: =D20 -> 0 | I20: Hotel Room 6: | K20: =J20*J19 -> 0 | L20: Total Room: | M20: =K20 -> 0
B21: Room Tax 1: | D21: =C21*C19 -> 0 | E21: Total Taxes: | F21: =D21+D22+D23 -> 0 | I21: Room Tax 1: | K21: =J21*J19 -> 0 | L21: Total Taxes: | M21: =K21+K22+K23 -> 0
B22: Room Tax 2: | D22: =C22*C19 -> 0 | E22: Total Bill: | F22: =F20+F21 -> 0 | G22: =G21-G20 -> 0 | I22: Room Tax 2: | K22: =J22*J19 -> 0 | L22: Total Bill: | M22: =M20+M21 -> 0 | N22: =N21-N20 -> 0
B23: Room Tax 3: | D23: =C23*C19 -> 0 | I23: Room Tax 3: | K23: =J23*J19 -> 0
B24: Number of nights: | C24: =G27 -> 0 | G24: Date Calc: | I24: Number of nights: | J24: =N27 -> 0 | N24: Date Calc:
B25: Hotel Room 3: | D25: =C25*C24 -> 0 | E25: Total Room: | F25: =D25 -> 0 | I25: Hotel Room 7: | K25: =J25*J24 -> 0 | L25: Total Room: | M25: =K25 -> 0
B26: Room Tax 1: | D26: =C26*C24 -> 0 | E26: Total Taxes: | F26: =D26+D27+D28 -> 0 | I26: Room Tax 1: | K26: =J26*J24 -> 0 | L26: Total Taxes: | M26: =K26+K27+K28 -> 0
B27: Room Tax 2: | D27: =C27*C24 -> 0 | E27: Total Bill: | F27: =F25+F26 -> 0 | G27: =G26-G25 -> 0 | I27: Room Tax 2: | K27: =J27*J24 -> 0 | L27: Total Bill: | M27: =M25+M26 -> 0 | N27: =N26-N25 -> 0
B28: Room Tax 3: | D28: =C28*C24 -> 0 | I28: Room Tax 3: | K28: =J28*J24 -> 0
B29: Number of nights: | C29: =G32 -> 0 | G29: Date Calc: | I29: Number of nights: | J29: =N32 -> 0 | N29: Date Calc:
B30: Hotel Room 4: | D30: =C30*C29 -> 0 | E30: Total Room: | F30: =D30 -> 0 | I30: Hotel Room 8: | K30: =J30*J29 -> 0 | L30: Total Room: | M30: =K30 -> 0
B31: Room Tax 1: | D31: =C31*C29 -> 0 | E31: Total Taxes: | F31: =D31+D32+D33 -> 0 | I31: Room Tax 1: | K31: =J31*J29 -> 0 | L31: Total Taxes: | M31: =K31+K32+K33 -> 0
B32: Room Tax 2: | D32: =C32*C29 -> 0 | E32: Total Bill: | F32: =F30+F31 -> 0 | G32: =G31-G30 -> 0 | I32: Room Tax 2: | K32: =J32*J29 -> 0 | L32: Total Bill: | M32: =M30+M31 -> 0 | N32: =N31-N30 -> 0
B33: Room Tax 3: | D33: =C33*C29 -> 0 | I33: Room Tax 3: | K33: =J33*J29 -> 0
B34: ME&E | E34: Total M&IE: | F34: =C34 -> 0
B35: Mileage to: | E35: Total MILEAGE: | F35: =C35+C36+C37 -> 0
B36: Mileage From:
B37: In and Around:
B38: Hotel Room Taxes: | C38: =F16+F21+F26+F31+M16+M21+M26+M31 -> 0 | E38: OTHER: | F38: =C38+C39+C40+C41+C42+C43+C44+C45+C46+C47+C48+J38+J39+J40+J41+J42+J43+J44+J45+J46+J47+J48 -> 0 | I38: Misc 1: | N38: Add em up
B39: Parking Term: | E39: Taxi Fare Finder | I39: Misc 2:
B40: Parking TDY: | I40: Misc 3:
B41: FCC Fees: | I41: Misc 4:
B42: Public Trans: | I42: Misc 5:
B43: Tolls 1: | I43: Misc 6:
B44: Tolls 2: | I44: Misc 7:
B45: Taxi 1: | I45: Misc 8:
B46: Taxi 2: | I46: Misc 9:
B47: Baggage 1: | I47: Misc 10:
B48: Baggage 2: | G48: =SUM(G39:G47) -> 0 | I48: Misc 11: | N48: =SUM(N39:N47) -> 0
B49: Rental Car 1: | E49: RENTAL CAR: | F49: =C49+C50+C51+J49+J50+J51 -> 0 | I49: Rental Car 4:
B50: Rental Car 2: | I50: Rental Car 5:
B51: Rental Car 3: | I51: Rental Car 6:
B52: Gas 1: | E52: TRANSPORT: | F52: =C52+C53+C54+C55+C56+C57+J52+J53+J54+J55+J56+J57 -> 0 | I52: Gas 7:
B53: Gas 2: | I53: Gas 8:
B54: Gas 3: | I54: Gas 9:
B55: Gas 4: | I55: Gas 10:
B56: Gas 5: | I56: Gas 11:
B57: Gas 6: | I57: Gas 12:
B59: ACTUAL TRIP COST | E59: COM. CARR.-I: | F59: =F5 -> 0
E60: LODGING: | F60: =F13 -> 0
E61: M&IE: | F61: =F34 -> 0
E62: MILEAGE: | F62: =F35 -> 0
E63: OTHER: | F63: =F38 -> 0
E64: RENTAL CAR: | F64: =F49 -> 0
E65: TRANSPORT: | F65: =F52 -> 0
E66: TOTAL: | F66: =SUM(F59:F65) -> 0
C69: Tax Pro-Rater | F69: #of Nights:
B70: Charged Rate: | D70: - | F70: :Allowable Rate
B71: Tax 1: | D71: =C71/C70 ->  | E71: =E70*D71 ->  | F71: =E71*G69 -> 
B72: Tax 2: | D72: =C72/C70 ->  | E72: =E70*D72 ->  | F72: =E72*G69 -> 
B73: Tax 3: | D73: =C73/C70 ->  | E73: =E70*D73 ->  | F73: =E73*G69 -> 
B74: Tax 4: | D74: Flat | E74: =C74 -> 0 | F74: =E74*G69 -> 0
E75: Total Allowable Taxes: | F75: =F71+F72+F73+F74 -> 
C77: Taxi Tip Pro-Rater | F77: Allowed:
B78: Taxi Fare 1: | D78: =C78*20% -> 0 | E78: : Max Tip | F78: =C78+D78 -> 0
B79: Taxi Fare 2: | D79: =C79*20% -> 0 | E79: : Max Tip | F79: =C79+D79 -> 0
B80: Taxi Fare 3: | D80: =C80*20% -> 0 | E80: : Max Tip | F80: =C80+D80 -> 0
B81: Taxi Fare 4: | D81: =C81*20% -> 0 | E81: : Max Tip | F81: =C81+D81 -> 0
B83: XE Currency Converter | E83: OANDA
A84: DO NOT CHANGE ANY YELLOW BOX - ONLY MODIFY THE GREEN OR WHITE BOXES
A86: EURO | C86: 222 | D86: 444 | E86: E Rate: | F86: =D86/C86 -> 2
F87: # of nights
E88: Per Night | F88: 6
B89: Room Charge | C89: 127.83 | D89: =C89*F86 -> 255.66
B90: Govt Levy | C90: 0 | D90: =C90*F86 -> 0 | E90: =SUM(D89:D90) -> 255.66 | F90: =E90*F88 -> 1533.96
B91: Service Charge Fee | C91: 0 | D91: =C91*F86 -> 0 | G91: Total
B92: Service Charge Fee | C92: 0 | D92: =C92*F86 -> 0 | E92: =D91+D92 -> 0 | F92: =E92*F88 -> 0 | G92: Stay
B93: Donation Fee | C93: 0 | D93: =C93*F86 -> 0 | G93: =F90+F92+D93 -> 1533.96
B94: Additional Expenses:
B95: Parking weekend | C95: 28 | D95: =C95*$F$86 -> 56 | G95: =F95*$F$86 -> 0
B96: Parking | C96: 76 | D96: =C96*$F$86 -> 152 | F96: 0 | G96: =F96*$F$86 -> 0
D97: =C97*$F$86 -> 0 | F97: 0 | G97: =F97*$F$86 -> 0
D98: =C98*$F$86 -> 0 | F98: 0 | G98: =F98*$F$86 -> 0
